fUST/lending_fUST_20250514
["ID","MTS","AMOUNT","RATE_DAILY","PERIOD"]
[360998966,1747189832605,-300.0,0.0001268,2]
[360998967,1747189832614,-300.0,0.0001268,2]
[360998968,1747189832624,-1200.0,0.0001268,2]
[360998969,1747189832633,-13122.51341943,0.00012681,2]
[360999035,1747189838348,-2666.6143928,0.00012681,2]
[360999157,1747189840756,-1512.81684643,0.00012681,2]
[360999158,1747189840870,-7459.64313133,0.00012681,2]
[360999159,1747189840882,-11686.18395722,0.00012681,2]
[360999371,1747189843513,-394.19537616,0.00012555,2]
[360999584,1747189846451,-4605.80462384,0.00012555,2]
[360999586,1747189846461,-11156.95362882,0.00012681,2]
[360999592,1747189846507,-830.6395,0.00012681,2]
[360999598,1747189846563,-1564.63512397,0.00012681,2]
[360999600,1747189846572,-500.0,0.00012681,2]
[360999602,1747189846582,-489.98552122,0.00012681,2]
[360999604,1747189846592,-500.0,0.00012681,2]
[360999606,1747189846602,-500.0,0.00012681,2]
[360999608,1747189846612,-640.43096668,0.00012681,2]
[360999610,1747189846621,-500.0,0.00012681,2]
[360999612,1747189846631,-500.0,0.00012681,2]
[360999614,1747189846640,-500.0,0.00012681,2]
[360999616,1747189846650,-500.0,0.00012681,2]
[360999618,1747189846660,-228.45966834,0.00012681,2]
[360999620,1747189846670,-317.62179663,0.00012689,2]
[360999623,1747189846682,-2000.0,0.00012689,2]
[361000096,1747191038518,-5000.0,0.00011359,2]
[361000097,1747191038529,-180.3557677,0.00011474,2]
[361000098,1747191038539,-500.0,0.00011492,2]
[361000101,1747191038563,-500.0,0.00011492,2]
[361000102,1747191038574,-173.7752384,0.00011492,2]
[361000103,1747191038586,-500.0,0.00011492,2]
[361000104,1747191038597,-436.68557314,0.00011492,2]
[361000105,1747191038608,-500.0,0.00011492,2]
[361000106,1747191038618,-192.05107426,0.00011492,2]
[361000107,1747191038630,-276.66505791,0.00011492,2]
[361000108,1747191038641,-875.1537067,0.00011493,2]
[361000109,1747191038652,-24900.0,0.00011493,2]
[361000110,1747191038662,-428.6796519,0.00011602,2]
[361000111,1747191038673,-3749.27,0.00012463,7]
[361000112,1747191038683,-3780.7682494,0.00012463,2]
[361000113,1747191038693,-1037.13775482,0.00012463,2]
[361000114,1747191038703,-3653.21683007,0.00012463,2]
[361000962,1747191443613,-5000.0,0.00011405,2]
[361000963,1747191443636,-474.3858837,0.0001152,2]
[361000964,1747191443659,-1219.5260612,0.00012107,2]
[361000965,1747191443683,-300.0,0.00012335,2]
[361000966,1747191443706,-300.0,0.00012335,2]
[361000967,1747191443728,-500.0,0.00012335,2]
[361000968,1747191443751,-500.0,0.00012335,2]
[361000969,1747191443775,-500.0,0.00012335,2]
[361000970,1747191443798,-500.0,0.00012335,2]
[361000971,1747191443822,-500.0,0.00012335,2]
[361000972,1747191443845,-542.55455565,0.00012335,2]
[361000973,1747191443870,-500.0,0.00012335,2]
[361000974,1747191443894,-162.76512904,0.00012335,2]
[361000975,1747191443918,-500.0,0.00012335,2]
[361000976,1747191443943,-500.0,0.00012335,2]
[361000977,1747191443969,-500.0,0.00012335,2]
[361000978,1747191443995,-500.0,0.00012335,2]
[361000979,1747191444019,-500.0,0.00012335,2]
[361000980,1747191444045,-500.0,0.00012335,2]
[361000981,1747191444073,-500.0,0.00012335,2]
[361000982,1747191444099,-500.0,0.00012335,2]
[361000983,1747191444128,-500.0,0.00012335,2]
[361000984,1747191444154,-500.0,0.00012335,2]
[361000985,1747191444182,-500.0,0.00012335,2]
[361000986,1747191444206,-500.0,0.00012335,2]
[361000987,1747191444230,-500.0,0.00012335,2]
[361000988,1747191444254,-500.0,0.00012335,2]
[361000989,1747191444277,-500.0,0.00012335,2]
[361000990,1747191444305,-500.0,0.00012335,2]
[361000991,1747191444330,-500.0,0.00012335,2]
[361000992,1747191444354,-500.0,0.00012335,2]
[361000993,1747191444378,-500.0,0.00012335,2]
[361000994,1747191444402,-500.0,0.00012335,2]
[361000995,1747191444427,-500.0,0.00012335,2]
[361000996,1747191444452,-361.30188387,0.00012335,2]
[361000997,1747191444477,-500.0,0.00012335,2]
[361000998,1747191444502,-500.0,0.00012335,2]
[361000999,1747191444526,-500.0,0.00012336,2]
[361001000,1747191444551,-500.0,0.00012336,2]
[361001001,1747191444755,-321.8703838,0.00012336,2]
[361001002,1747191444781,-500.0,0.00012336,2]
[361001003,1747191444806,-500.0,0.00012336,2]
[361001004,1747191444830,-264.10119595,0.00012336,2]
[361001005,1747191444854,-300.0,0.00012336,2]
[361001006,1747191444877,-300.0,0.00012336,2]
[361001007,1747191444901,-1200.0,0.00012336,2]
[361001008,1747191444924,-31495.04717537,0.00012337,2]
[361001009,1747191444950,-652.68038405,0.00012371,2]
[361001010,1747191444973,-5427.156351,0.00012463,2]
[361001011,1747191444997,-158.69939524,0.000129,2]
[361001012,1747191445022,-1729.51253763,0.000134,2]
[361001013,1747191445049,-1729.51253758,0.00013417,2]
[361001014,1747191445073,-231.32331055,0.00013548,2]
[361001015,1747191445096,-500.0,0.00013548,2]
[361001016,1747191445119,-500.0,0.00013548,2]
[361001017,1747191445145,-500.0,0.00013548,2]
[361001018,1747191445168,-500.0,0.00013548,2]
[361001019,1747191445190,-501.19483663,0.00013548,2]
[361001020,1747191445212,-500.0,0.00013548,2]
[361001021,1747191445234,-500.0,0.00013548,2]
[361001022,1747191445257,-500.0,0.00013557,2]
[361001023,1747191445280,-500.0,0.00013557,2]
[361001024,1747191445303,-500.0,0.00013557,2]
[361001025,1747191445326,-500.0,0.00013557,2]
[361001026,1747191445349,-500.0,0.00013557,2]
[361001027,1747191445372,-155.17603,0.00013559,2]
[361001028,1747191445397,-500.0,0.00013671,2]
[361001029,1747191445422,-400.0,0.00013698,2]
[361001030,1747191445447,-1000.0,0.00013698,2]
[361001031,1747191445472,-401.34732366,0.00013698,2]
[361001032,1747191445496,-400.0,0.00013698,2]
[361001033,1747191445520,-382.86533332,0.00013698,2]
[361001034,1747191445545,-400.0,0.00013698,2]
[361001035,1747191445568,-404.5904937,0.00013698,2]
[361001036,1747191445591,-400.0,0.00013698,2]
[361001037,1747191445614,-249.12197989,0.00013698,2]
[361001038,1747191445638,-574.31649871,0.00013698,2]
[361001039,1747191445663,-400.83640876,0.00013698,2]
[361001040,1747191445688,-404.4237465,0.00013698,2]
[361001041,1747191445713,-403.95524282,0.00013698,2]
[361001042,1747191445737,-403.09797224,0.00013698,2]
[361001043,1747191445761,-401.24026513,0.00013698,2]
[361001044,1747191445785,-403.82843786,0.00013698,2]
[361001045,1747191445808,-405.81535306,0.00013698,2]
[361001046,1747191445830,-404.18268557,0.00013698,2]
[361001047,1747191445853,-400.0,0.00013698,2]
[361001048,1747191445876,-401.67429492,0.00013698,2]
[361001049,1747191445900,-404.26049761,0.00013698,2]
[361001050,1747191445923,-400.0,0.00013698,2]
[361001051,1747191445948,-400.0,0.00013698,2]
[361001052,1747191445971,-404.4507388,0.00013698,2]
[361001053,1747191445996,-408.91528888,0.00013698,2]
[361001054,1747191446020,-400.0,0.00013698,2]
[361001055,1747191446043,-226.98548386,0.00013698,2]
[361001056,1747191446070,-400.68608157,0.00013698,2]
[361001057,1747191446093,-213.47185343,0.00013698,2]
[361001058,1747191446117,-400.0,0.00013698,2]
[361001059,1747191446144,-400.0,0.00013698,2]
[361001060,1747191446169,-400.0,0.00013698,2]
[361001061,1747191446192,-333.42310993,0.00013698,2]
[361001062,1747191446215,-400.0,0.00013698,2]
[361001063,1747191446238,-212.66943009,0.00013698,2]
[361001064,1747191446261,-400.59806944,0.00013698,2]
[361001065,1747191446283,-275.63735612,0.00013698,2]
[361001066,1747191446306,-318.10298486,0.00013698,2]
[361001067,1747191446329,-400.0,0.00013698,2]
[361001068,1747191446353,-416.65,0.00013698,2]
[361001069,1747191446377,-504.32153536,0.00013698,2]
[361001070,1747191446400,-528.76,0.00013698,2]
[361001071,1747191446423,-400.0,0.00013698,2]
[361001072,1747191446446,-469.93779824,0.00013698,2]
[361001073,1747191446469,-403.7998385,0.00013698,2]
[361001074,1747191446495,-400.49126337,0.00013698,2]
[361001075,1747191446518,-400.0,0.00013698,2]
[361001076,1747191446542,-390.0,0.00013698,2]
[361001077,1747191446565,-400.0,0.00013698,2]
[361001078,1747191446588,-400.0,0.00013698,2]
[361001079,1747191446612,-400.0,0.00013698,2]
[361001080,1747191446638,-400.0,0.00013698,2]
[361001081,1747191446662,-400.80362137,0.00013698,2]
[361001082,1747191446688,-400.0,0.00013698,2]
[361001083,1747191446712,-413.27874317,0.00013698,2]
[361001084,1747191446739,-400.0,0.00013698,2]
[361001085,1747191446763,-403.78978925,0.00013698,2]
[361001086,1747191446786,-404.18741006,0.00013698,2]
[361001087,1747191446808,-407.06847313,0.00013698,2]
[361001088,1747191446832,-400.0,0.00013698,2]
[361001089,1747191446855,-407.8804763,0.00013698,2]
[361001090,1747191446880,-400.0,0.00013698,2]
[361001091,1747191446903,-405.72683992,0.00013698,2]
[361001092,1747191446926,-400.0,0.00013698,2]
[361001093,1747191446950,-414.80949022,0.00013698,2]
[361001094,1747191446987,-503.08851151,0.00013698,2]
[361001095,1747191447011,-400.0,0.00013698,2]
[361001096,1747191447036,-400.0,0.00013698,2]
[361001097,1747191447061,-502.00420122,0.00013698,2]
[361001098,1747191447087,-432.49,0.00013698,2]
[361001099,1747191447113,-400.0,0.00013698,2]
[361001100,1747191447137,-400.0,0.00013698,2]
[361001101,1747191447161,-544.84742545,0.00013698,2]
[361001102,1747191447186,-400.0,0.00013698,2]
[361001103,1747191447209,-331.6052733,0.00013698,2]
[361001104,1747191447233,-400.0,0.00013698,2]
[361001105,1747191447257,-290.16080414,0.00013698,2]
[361001106,1747191447282,-401.01290293,0.00013698,2]
[361001107,1747191447305,-392.3902084,0.00013698,2]
[361001108,1747191447328,-400.0,0.00013698,2]
[361001109,1747191447352,-504.5173766,0.00013698,2]
[361001110,1747191447376,-502.28434415,0.00013698,2]
[361001111,1747191447402,-506.30833476,0.00013698,2]
[361001112,1747191447425,-400.0,0.00013698,2]
[361001113,1747191447448,-400.0,0.00013698,2]
[361001114,1747191447471,-400.0,0.00013698,2]
[361001115,1747191447493,-400.0,0.00013698,2]
[361001116,1747191447517,-531.96625294,0.00013698,2]
[361001117,1747191447541,-539.88069062,0.00013698,2]
[361001118,1747191447566,-400.43682766,0.00013698,2]
[361001119,1747191447590,-504.14202876,0.00013698,2]
[361001120,1747191447617,-501.80065852,0.00013698,2]
[361001121,1747191447640,-403.38979801,0.00013698,2]
[361001122,1747191447662,-400.0,0.00013698,2]
[361001123,1747191447686,-401.96691497,0.00013698,2]
[361001124,1747191447708,-401.24155021,0.00013698,2]
[361001125,1747191447737,-400.0,0.00013698,2]
[361001126,1747191447760,-387.06077759,0.00013698,2]
[361001127,1747191447784,-400.0,0.00013698,2]
[361001128,1747191447808,-400.0,0.00013698,2]
[361001129,1747191447832,-400.0,0.00013698,2]
[361001130,1747191447856,-160.0,0.00013698,2]
[361001131,1747191447881,-401.8724855,0.00013698,2]
[361001132,1747191447905,-387.2733715,0.00013698,2]
[361001133,1747191447928,-400.0,0.00013698,2]
[361001134,1747191447952,-603.048666,0.00013699,2]
[361001135,1747191447987,-500.0,0.00013699,2]
[361001136,1747191448021,-500.0,0.00013699,2]
[361001137,1747191448056,-500.0,0.00013699,2]
[361001138,1747191448088,-500.0,0.00013699,2]
[361001139,1747191448121,-500.0,0.00013699,2]
[361001140,1747191448153,-500.0,0.00013699,2]
[361001141,1747191448186,-331.57633337,0.00013699,2]
[361001142,1747191448219,-500.0,0.00013699,2]
[361001143,1747191448253,-500.0,0.00013699,2]
[361001144,1747191448286,-500.0,0.00013699,2]
[361001145,1747191448319,-500.0,0.00013699,2]
[361001146,1747191448352,-500.0,0.00013699,2]
[361001147,1747191448387,-500.0,0.00013699,2]
[361001148,1747191448420,-500.0,0.00013699,2]
[361001149,1747191448452,-500.0,0.00013699,2]
[361001150,1747191448485,-500.0,0.00013699,2]
[361001151,1747191448517,-500.0,0.00013699,2]
[361001152,1747191448549,-500.0,0.00013699,2]
[361001153,1747191448581,-500.0,0.00013699,2]
[361001154,1747191448614,-500.0,0.00013699,2]
[361001155,1747191448647,-500.0,0.00013699,2]
[361001156,1747191448684,-500.0,0.00013699,2]
[361001157,1747191448718,-500.0,0.00013699,2]
[361001158,1747191448751,-500.0,0.00013699,2]
[361001159,1747191448782,-500.0,0.00013699,2]
[361001160,1747191448813,-500.0,0.00013699,2]
[361001161,1747191448845,-500.0,0.00013699,2]
[361001162,1747191448878,-500.0,0.00013699,2]
[361001163,1747191448909,-500.0,0.00013699,2]
[361001164,1747191448940,-500.0,0.00013699,2]
[361001165,1747191448972,-500.0,0.00013699,2]
[361001166,1747191449003,-500.0,0.00013699,2]
[361001167,1747191449033,-500.0,0.00013699,2]
[361001168,1747191449065,-500.0,0.00013699,2]
[361001169,1747191449096,-500.0,0.00013699,2]
[361001170,1747191449126,-500.0,0.00013699,2]
[361001171,1747191449157,-500.0,0.00013699,2]
[361001172,1747191449187,-500.0,0.00013699,2]
[361001173,1747191449220,-500.0,0.00013699,2]
[361001174,1747191449251,-500.0,0.00013699,2]
[361001175,1747191449282,-500.0,0.00013699,2]
[361001176,1747191449316,-500.0,0.00013699,2]
[361001177,1747191449349,-500.0,0.00013699,2]
[361001178,1747191449382,-500.0,0.00013699,2]
[361001179,1747191449617,-500.0,0.00013699,2]
[361001180,1747191449665,-500.0,0.00013699,2]
[361001181,1747191449699,-500.0,0.00013699,2]
[361001182,1747191449730,-500.0,0.00013699,2]
[361001183,1747191449762,-583.15763334,0.00013699,2]
[361001184,1747191449793,-500.0,0.00013699,2]
[361001185,1747191449824,-500.0,0.00013699,2]
[361001186,1747191449856,-500.0,0.00013699,2]
[361001187,1747191449888,-600.0,0.00013699,2]
[361001188,1747191449920,-500.0,0.00013699,2]
[361001189,1747191449953,-500.0,0.00013699,2]
[361001190,1747191449986,-500.0,0.00013699,2]
[361001191,1747191450025,-500.0,0.00013699,2]
[361001192,1747191450062,-500.0,0.00013699,2]
[361001193,1747191450087,-500.0,0.00013757,2]
[361001194,1747191450112,-500.82372481,0.00013757,2]
[361001195,1747191450142,-501.15176242,0.0001385,2]
[361001196,1747191450167,-500.0,0.0001385,2]
[361001197,1747191450195,-109.69128044,0.00013934,2]
[361001198,1747191481320,-5000.0,0.00013795,2]
[361001199,1747191481344,-400.0,0.00013972,2]
[361001200,1747191481370,-416.65,0.00013972,2]
[361001201,1747191481397,-432.49,0.00013972,2]
[361001202,1747191481422,-401.8582688,0.00013972,2]
[361001203,1747191481448,-217.49,0.00014,2]
[361001204,1747191481472,-400.0,0.00014246,2]
[361001205,1747191481496,-416.65,0.00014246,2]
[361001206,1747191481523,-432.49,0.00014246,2]
[361001207,1747191481552,-400.0,0.0001452,2]
[361001208,1747191481577,-416.65,0.0001452,2]
[361001209,1747191481603,-432.49,0.0001452,2]
[361001210,1747191481627,-400.0,0.00014794,2]
[361001211,1747191481652,-416.65,0.00014794,2]
[361001212,1747191481676,-432.49,0.00014794,2]
[361001213,1747191481699,-160.0,0.00015,2]
[361001214,1747191481722,-400.0,0.00015068,2]
[361001215,1747191481745,-416.65,0.00015068,2]
[361001216,1747191481770,-432.49,0.00015068,2]
[361001217,1747191481794,-160.0,0.00015068,2]
[361001218,1747191481818,-400.0,0.00015342,2]
[361001219,1747191481841,-416.65,0.00015342,2]
[361001220,1747191481869,-432.49,0.00015342,2]
[361001221,1747191481892,-160.0,0.00015384,2]
[361001222,1747191481916,-160.0,0.00015384,2]
[361001223,1747191481940,-997.9747837,0.00015384,2]
[361001224,1747191481963,-160.0,0.00015384,2]
[361001225,1747191481986,-160.0,0.00015384,2]
[361001226,1747191482008,-12627.42419379,0.00015384,2]
[361001227,1747191482032,-212.21045333,0.00015384,2]
[361001228,1747191482055,-160.0,0.00015384,2]
[361001229,1747191482082,-422.27619506,0.00015384,2]
[361001230,1747191482106,-160.0,0.00015384,2]
[361001231,1747191482129,-160.0,0.00015384,2]
[361001232,1747191482156,-468.838351,0.00015616,2]
[361001233,1747191482180,-416.65,0.00015616,2]
[361001234,1747191482206,-300.43775432,0.00015616,2]
[361001264,1747192231895,-264.22392972,0.00012299,2]
[361001266,1747192231905,-211.23793258,0.00012399,2]
[361001269,1747192231916,-4734.9539325,0.00012399,2]
[361001271,1747192231928,-53.80813492,0.00012399,2]
[361001273,1747192231938,-1838.89380689,0.00012424,2]
[361001275,1747192231947,-603.962483,0.00013699,2]
[361001277,1747192231957,-10000.0,0.00013772,2]
[361001279,1747192231966,-500.0,0.00013896,2]
[361001281,1747192231975,-500.0,0.00013896,2]
[361001283,1747192231987,-500.0,0.00013896,2]
[361001284,1747192231997,-540.14465376,0.00013896,2]
[361001285,1747192232006,-500.0,0.00013896,2]
[361001286,1747192232015,-573.64056989,0.00013896,2]
[361001287,1747192232024,-500.0,0.00013896,2]
[361001288,1747192232033,-218.31576333,0.00013896,2]
[361001289,1747192232043,-1639.05354106,0.000139,2]
[361001290,1747192232052,-195.74,0.00014,2]
[361001291,1747192232061,-1639.05354094,0.00014383,2]
[361001292,1747192232071,-500.0,0.00014767,2]
[361001293,1747192232080,-1639.05354094,0.00014866,2]
[361001294,1747192232092,-158.69939521,0.00014899,2]
[361001295,1747192232101,-575.30926866,0.00014999,2]
[361001296,1747192232110,-500.0,0.00014999,2]
[361001297,1747192232119,-500.0,0.00014999,2]
[361001298,1747192232129,-234.87083717,0.00014999,2]
[361001299,1747192232140,-160.0,0.00015,2]
[361001300,1747192232149,-1534.76210099,0.00015,7]
[361001309,1747192237647,-4251.85359413,0.00015,7]
[361001316,1747192237700,-6901.6436149,0.00015,7]
[361001318,1747192237710,-212.21045333,0.00015,7]
[361001320,1747192237720,-500.0,0.00015033,2]
[361001322,1747192237730,-500.0,0.00015033,2]
[361001324,1747192237739,-400.0,0.00015341,2]
[361001326,1747192237750,-1639.05354094,0.00015348,2]
[361001328,1747192237761,-160.0,0.00015379,2]
[361001331,1747192237771,-160.0,0.00015379,2]
[361001333,1747192237780,-160.0,0.00015379,2]
[361001335,1747192237790,-12627.42419379,0.00015379,2]
[361001337,1747192237800,-997.9747837,0.00015379,2]
[361001339,1747192237810,-160.0,0.00015379,2]
[361001341,1747192237820,-212.21045333,0.00015379,2]
[361001343,1747192237830,-422.27619506,0.00015379,2]
[361001345,1747192237840,-160.0,0.00015379,2]
[361001347,1747192237851,-160.0,0.00015379,2]
[361001349,1747192237860,-160.0,0.00015379,2]
[361001351,1747192237870,-500.0,0.00015475,2]
[361001353,1747192237880,-652.68038405,0.00015603,2]
[361001355,1747192237889,-400.0,0.00015615,2]
[361001357,1747192237899,-500.0,0.0001576,2]
[361001359,1747192237909,-502.55558983,0.0001576,2]
[361001361,1747192237918,-1639.05354094,0.00015831,2]
[361001363,1747192237928,-400.0,0.00015889,2]
[361001365,1747192237938,-400.0,0.00016163,2]
[361001367,1747192237947,-1639.05354094,0.00016314,2]
[361001369,1747192237957,-400.0,0.00016437,2]
[361001371,1747192237966,-160.0,0.00016438,2]
[361001373,1747192237976,-550.468,0.00016504,2]
[361001375,1747192237986,-2265.806,0.00016504,2]
[361001378,1747192237995,-715.395,0.00016504,2]
[361001380,1747192238005,-400.0,0.00016711,2]
[361001382,1747192238015,-1639.05354094,0.00016797,2]
[361001384,1747192238024,-2200.0,0.00016936,2]
[361001386,1747192238034,-400.0,0.00016985,2]
[361001388,1747192238044,-997.9747837,0.00017,7]
[361001390,1747192238053,-12627.42419379,0.00017,7]
[361001392,1747192238062,-400.0,0.00017259,2]
[361001394,1747192238071,-1441.17117156,0.00017279,2]
[361001478,1747192240585,-800.0,0.00014883,2]
[361002099,1747192426337,-375.7865743,0.00010359,2]
[361002100,1747192429854,-290.70444987,0.00010359,2]
[361002102,1747192433734,-303.41674288,0.00010359,2]
[361002103,1747192435885,-300.0,0.00010359,2]
[361002104,1747192438070,-333.9551927,0.00010359,2]
[361002105,1747192439694,-151.70063652,0.00010359,2]
[361002106,1747192441316,-305.42821687,0.00010359,2]
[361002107,1747192443834,-238.10347877,0.00010359,2]
[361002108,1747192446031,-160.25887754,0.00010359,2]
[361002109,1747192447560,-175.77105193,0.00010359,2]
[361002110,1747192449127,-169.91242968,0.00010359,2]
[361002111,1747192451828,-236.4578936,0.00010359,2]
[361002112,1747192454381,-252.05480483,0.00010359,2]
[361002113,1747192457730,-177.77434013,0.00010359,2]
[361002114,1747192460090,-265.72981301,0.00010359,2]
[361002115,1747192462225,-194.256175,0.00010359,2]
[361002116,1747192464960,-196.47763723,0.00010359,2]
[361002117,1747192466478,-288.16200006,0.00010359,2]
[361002118,1747192468603,-389.20936491,0.00010359,2]
[361002119,1747192470722,-194.84032017,0.00010359,2]
[361002120,1747192572586,-153.0109088,0.00010359,2]
[361002121,1747192574711,-229.90412252,0.00010359,2]
[361002122,1747192576285,-264.0313792,0.00010359,2]
[361002123,1747192577916,-308.21799783,0.00010359,2]
[361002124,1747192579606,-210.36202786,0.00010359,2]
[361002125,1747192581761,-274.6360475,0.00010359,2]
[361002126,1747192584716,-248.55865123,0.00010359,2]
[361002127,1747192586857,-271.01813992,0.00010359,2]
[361002128,1747192589008,-228.98186008,0.00010359,2]
[361002129,1747192590571,-279.79451778,0.00010359,2]
[361002130,1747192592590,-220.20548222,0.00010359,2]
[361002131,1747192596510,-224.59105882,0.00010359,2]
[361002132,1747192598134,-422.33179478,0.00010359,2]
[361002133,1747192600157,-230.9036542,0.00010359,2]
[361002134,1747192605015,-224.13271885,0.00010359,2]
[361002135,1747192607226,-283.46536939,0.00010359,2]
[361002136,1747192609984,-184.15549261,0.00010359,2]
[361002137,1747192611442,-198.84443814,0.00010359,2]
[361002138,1747192613499,-307.06858814,0.00010359,2]
[361002139,1747192615177,-235.78575013,0.00010359,2]
[361002140,1747192707496,-342.72084089,0.00010359,2]
[361002141,1747192709017,-167.55797143,0.00010359,2]
[361002142,1747192711674,-292.48014679,0.00010359,2]
[361002143,1747192713738,-234.5840292,0.00010359,2]
[361002145,1747192735942,-460.06463752,0.00010359,2]
[361002146,1747192739137,-329.92664359,0.00010359,2]
[361002147,1747192741406,-170.07335641,0.00010359,2]
[361002148,1747192744658,-327.5457519,0.00010359,2]
[361002149,1747192746723,-170.5166775,0.00010359,2]
[361002150,1747192749048,-282.03890805,0.00010359,2]
[361002151,1747192750639,-245.55683349,0.00010359,2]
[361002152,1747192753246,-286.84952252,0.00010359,2]
[361002153,1747192754786,-181.19864509,0.00010359,2]
[361002154,1747192756322,-181.0,0.00010359,2]
[361002155,1747192758318,-208.71843324,0.00010359,2]
[361002156,1747192760642,-223.5143695,0.00010359,2]
[361002157,1747192763896,-239.19050477,0.00010359,2]
[361002158,1747192766097,-215.51499047,0.00010359,2]
[361002159,1747192768072,-165.48684912,0.00010359,2]
[361002160,1747192770254,-200.02633474,0.00010359,2]
[361002161,1747192773090,-75.43455378,0.00010359,2]
[361002162,1747192787685,-206.76423893,0.00010359,2]
[361002163,1747192975035,-354.82266376,0.00010255,2]
[361002164,1747192979271,-180.03912739,0.00010255,2]
[361002167,1747193165443,-157.83918439,0.00010152,2]
[361002168,1747193171567,-225.0357138,0.00010152,2]
[361002169,1747193173081,-235.50125494,0.00010152,2]
[361002170,1747193174628,-222.73251824,0.00010152,2]
[361002171,1747193176258,-516.29617905,0.00010152,2]
[361002172,1747193178369,-173.94630546,0.00010152,2]
[361002173,1747193179955,-179.23776153,0.00010152,2]
[361002174,1747193182930,-323.76223847,0.00010152,2]
[361002175,1747193184421,-246.59637813,0.00010152,2]
[361002176,1747193186730,-273.98579963,0.00010152,2]
[361002177,1747193188228,-202.98257043,0.00010152,2]
[361002178,1747193190286,-206.21698277,0.00010152,2]
[361002179,1747193192990,-300.0,0.00010152,2]
[361002180,1747193194589,-303.41701588,0.00010152,2]
[361002181,1747193196670,-155.0,0.00010152,2]
[361002182,1747193214977,-1000.0,0.00010152,2]
[361002216,1747193431991,-605.45,0.00010359,2]
[361002217,1747193432003,-385.83333708,0.00010359,2]
[361002221,1747193432120,-481.84569023,0.00010359,2]
[361002222,1747193432132,-3526.87097269,0.00010359,2]
[361002223,1747193432142,-155.0,0.00010464,2]
[361002224,1747193432151,-300.0,0.00013888,2]
[361002225,1747193432161,-1200.0,0.00013889,2]
[361002226,1747193432171,-300.0,0.00013889,2]
[361002227,1747193432180,-161.0,0.00013889,2]
[361002228,1747193432190,-300.0,0.00013889,2]
[361002229,1747193432199,-135.13738812,0.0001389,2]
[361002255,1747193440856,-24.48299765,0.00013888,2]
[361002449,1747193446286,-5000.0,0.00013749,2]
[361002451,1747193446297,-475.51700235,0.00013888,2]
[361002453,1747193446307,-637.37841099,0.00013888,2]
[361002455,1747193446316,-500.0,0.00013888,2]
[361002457,1747193446328,-500.0,0.00013888,2]
[361002459,1747193446337,-500.0,0.00013888,2]
[361002461,1747193446348,-318.52100446,0.00013888,2]
[361002463,1747193446358,-500.0,0.00013888,2]
[361002465,1747193446369,-500.0,0.00013888,2]
[361002467,1747193446379,-500.0,0.00013888,2]
[361002469,1747193446389,-600.59973185,0.00013888,2]
[361002472,1747193446403,-400.0,0.00013895,2]
[361002474,1747193446413,-400.0,0.00013895,2]
[361002476,1747193446422,-2702.5905512,0.00013984,2]
[361002478,1747193446434,-1222.62249664,0.0001399,4]
[361002640,1747193717824,10000.0,8.02e-05,2]
[361002641,1747193734373,2587.15,8.02e-05,2]
[361002685,1747194632185,-5000.0,0.0001175,2]
[361002686,1747194632195,-3.43443292,0.00011869,2]
[361002689,1747194632207,-2991.21434198,0.00011869,2]
[361002691,1747194632216,-1200.0,0.00012828,2]
[361002693,1747194632226,-300.0,0.00012828,2]
[361002695,1747194632236,-300.0,0.00012829,2]
[361002697,1747194632245,-33.80155395,0.00012829,2]
[361002840,1747194638082,-500.0,0.00011868,2]